fUSD/lending_fUSD_20250818
["ID","MTS","AMOUNT","RATE_DAILY","PERIOD"]
[380081573,1755531568449,-3944.16,0.0003041,120]
[380081574,1755531568495,-1507.1,0.0003041,120]
[380081575,1755531568539,-400.0,0.0003041,120]
[380081576,1755531568586,-400.0,0.0003041,120]
[380081577,1755531568630,-400.0,0.0003041,120]
[380081578,1755531568673,-1866.07,0.0003041,120]
[380081579,1755531568717,-2135.37,0.0003041,120]
[380081580,1755531568762,-400.0,0.0003041,120]
[380081581,1755531568806,-400.0,0.0003041,120]
[380081582,1755531568850,-400.0,0.0003041,120]
[380081583,1755531568894,-400.0,0.0003041,120]
[380081584,1755531568938,-452.56,0.0003041,120]
[380081585,1755531568982,-400.0,0.0003041,120]
[380081586,1755531569028,-3553.6,0.0003041,120]
[380081587,1755531569071,-400.0,0.0003041,120]
[380081588,1755531569115,-400.0,0.0003041,120]
[380081589,1755531569160,-633.08,0.0003041,120]
[380081590,1755531569205,-755.93,0.0003041,120]
[380081591,1755531569253,-400.0,0.0003041,120]
[380081592,1755531569303,-2037.42,0.0003041,120]
[380081593,1755531569354,-1326.07,0.0003041,120]
[380081594,1755531569405,-400.0,0.0003041,120]
[380081595,1755531569456,-400.0,0.0003041,120]
[380081596,1755531569504,-2815.14,0.0003041,120]
[380081597,1755531569552,-1448.97,0.0003041,120]
[380081598,1755531569597,-400.0,0.0003041,120]
[380081599,1755531569642,-400.0,0.0003041,120]
[380081600,1755531569691,-400.0,0.0003041,120]
[380081601,1755531569736,-400.0,0.0003041,120]
[380081602,1755531569781,-400.0,0.0003041,120]
[380081603,1755531569835,-400.0,0.0003041,120]
[380081604,1755531569920,-926.58,0.0003041,120]
[380081605,1755531569997,-400.0,0.0003041,120]
[380081606,1755531570042,-400.0,0.0003041,120]
[380081607,1755531570088,-400.0,0.0003041,120]
[380081608,1755531570132,-400.0,0.0003041,120]
[380081609,1755531570177,-400.0,0.0003041,120]
[380081610,1755531570221,-400.0,0.0003041,120]
[380081611,1755531570267,-400.0,0.0003041,120]
[380081612,1755531570314,-1845.61,0.0003041,120]
[380081613,1755531570360,-400.0,0.0003041,120]
[380081614,1755531570410,-2916.73,0.0003041,120]
[380081615,1755531570457,-6391.15,0.0003041,120]
[380081616,1755531570503,-694.96,0.0003041,120]
[380081617,1755531570551,-400.0,0.0003041,120]
[380081618,1755531570597,-400.0,0.0003041,120]
[380081619,1755531570641,-400.0,0.0003041,120]
[380081620,1755531570686,-400.0,0.0003041,120]
[380081621,1755531570730,-3235.58,0.0003041,120]
[380081622,1755531570774,-400.0,0.0003041,120]
[380081623,1755531570819,-400.0,0.0003041,120]
[380081624,1755531570864,-946.55,0.0003041,120]
[380081625,1755531570910,-1189.34,0.0003041,120]
[380081626,1755531570956,-400.0,0.0003041,120]
[380081627,1755531570999,-400.0,0.0003041,120]
[380081628,1755531571043,-400.0,0.0003041,120]
[380081629,1755531571088,-400.0,0.0003041,120]
[380081630,1755531571133,-400.0,0.0003041,120]
[380081631,1755531571176,-400.0,0.0003041,120]
[380081632,1755531571220,-400.0,0.0003041,120]
[380081633,1755531571267,-7818.05,0.0003041,120]
[380081634,1755531571310,-400.0,0.0003041,120]
[380081635,1755531571357,-400.0,0.0003041,120]
[380081636,1755531571689,-400.0,0.0003041,120]
[380081637,1755531571734,-400.0,0.0003041,120]
[380081638,1755531571779,-400.0,0.0003041,120]
[380081639,1755531571823,-2192.69,0.0003041,120]
[380081640,1755531571866,-1719.17,0.0003041,120]
[380081641,1755531571913,-400.0,0.0003041,120]
[380081642,1755531571957,-400.0,0.0003041,120]
[380081643,1755531572003,-400.0,0.0003041,120]
[380081644,1755531572047,-400.0,0.0003041,120]
[380081645,1755531572090,-400.0,0.0003041,120]
[380081646,1755531572134,-400.0,0.0003041,120]
[380081647,1755531572179,-453.06,0.0003041,120]
[380081648,1755531572221,-623.55,0.0003041,120]
[380081649,1755531572267,-663.5,0.0003041,120]
[380081650,1755531572314,-599.71,0.0003041,120]
[380081651,1755531572363,-954.45,0.0003041,120]
[380081652,1755531572410,-400.0,0.0003041,120]
[380081653,1755531572455,-400.0,0.0003041,120]
[380081654,1755531572501,-7999.44,0.0003041,120]
[380081655,1755531572548,-1065.95,0.0003041,120]
[380081656,1755531572591,-400.0,0.0003041,120]
[380081657,1755531572634,-1783.6,0.0003041,120]
[380081658,1755531572679,-400.0,0.0003041,120]
[380081659,1755531572722,-400.0,0.0003041,120]
[380081660,1755531572766,-1276.28,0.0003041,120]
[380081661,1755531572810,-711.22,0.0003041,120]
[380081662,1755531572853,-856.05,0.0003041,120]
[380081663,1755531572896,-400.0,0.0003041,120]
[380081664,1755531572942,-400.0,0.0003041,120]
[380081665,1755531572985,-913.78,0.0003041,120]
[380081666,1755531573031,-971.97,0.0003041,120]
[380081667,1755531573077,-446.600001,0.0003041,120]
[380081668,1755531573122,-400.0,0.0003041,120]
[380081669,1755531573168,-1727.56,0.0003041,120]
[380081670,1755531573216,-2835.46,0.0003041,120]
[380081671,1755531573263,-400.0,0.0003041,120]
[380081672,1755531573311,-998.0,0.0003041,120]
[380081673,1755531573361,-400.0,0.0003041,120]
[380081674,1755531573412,-400.0,0.0003041,120]
[380081675,1755531573460,-400.0,0.0003041,120]
[380081676,1755531573509,-400.0,0.0003041,120]
[380081677,1755531573556,-400.0,0.0003041,120]
[380081678,1755531573605,-454.94,0.0003041,120]
[380081679,1755531573653,-400.0,0.0003041,120]
[380081680,1755531573703,-3930.35,0.0003041,120]
[380081681,1755531573747,-1870.62,0.0003041,120]
[380081682,1755531573793,-4673.47,0.0003041,120]
[380081683,1755531573838,-400.0,0.0003041,120]
[380081684,1755531573883,-812.33,0.0003041,120]
[380081685,1755531573929,-400.0,0.0003041,120]
[380081686,1755531573976,-400.0,0.0003041,120]
[380081687,1755531574026,-1607.07,0.0003041,120]
[380081688,1755531574076,-1953.1,0.0003041,120]
[380081689,1755531574125,-1057.81,0.0003041,120]
[380081690,1755531574173,-459.32,0.0003041,120]
[380081691,1755531574221,-400.0,0.0003041,120]
[380081692,1755531574269,-852.5,0.0003041,120]
[380081693,1755531574316,-400.0,0.0003041,120]
[380081694,1755531574368,-555.31,0.0003041,120]
[380081695,1755531574416,-400.0,0.0003041,120]
[380081696,1755531574463,-400.0,0.0003041,120]
[380081697,1755531574510,-2141.21,0.0003041,120]
[380081698,1755531574556,-414.08,0.0003041,120]
[380081699,1755531574600,-400.0,0.0003041,120]
[380081700,1755531574646,-400.0,0.0003041,120]
[380081701,1755531574693,-400.0,0.0003041,120]
[380081702,1755531574738,-820.63,0.0003041,120]
[380081703,1755531574783,-531.79,0.0003041,120]
[380081704,1755531574832,-4375.75,0.0003041,120]
[380081705,1755531574877,-400.0,0.0003041,120]
[380081706,1755531574921,-1509.44,0.0003041,120]
[380081707,1755531574972,-938.44,0.0003041,120]
[380081708,1755531575015,-499.24,0.0003041,120]
[380081709,1755531575060,-403.21814675,0.0003041,120]
[380081710,1755531575108,-689.65,0.0003041,120]
[380081711,1755531575162,-795.49,0.0003041,120]
[380081712,1755531575214,-1055.35,0.0003041,120]
[380081713,1755531575265,-400.0,0.0003041,120]
[380081714,1755531575315,-400.0,0.0003041,120]
[380081715,1755531575367,-11349.52,0.0003041,120]
[380081716,1755531575418,-400.0,0.0003041,120]
[380081717,1755531575484,-400.0,0.0003041,120]
[380081718,1755531575598,-878.19,0.0003041,120]
[380081719,1755531575648,-400.0,0.0003041,120]
[380081720,1755531575695,-400.0,0.0003041,120]
[380081721,1755531575743,-400.0,0.0003041,120]
[380081722,1755531575789,-555.87,0.0003041,120]
[380081723,1755531575835,-1362.08,0.0003041,120]
[380081724,1755531575881,-400.0,0.0003041,120]
[380081725,1755531575927,-340.66,0.0003041,120]
[380081726,1755531575972,-2424.39,0.0003041,120]
[380081727,1755531576024,-400.0,0.0003041,120]
[380081728,1755531576069,-655.76,0.0003041,120]
[380081729,1755531576117,-400.0,0.0003041,120]
[380081730,1755531576167,-787.43,0.0003041,120]
[380081731,1755531576213,-422.14,0.0003041,120]
[380081732,1755531576259,-400.0,0.0003041,120]
[380081733,1755531576309,-400.0,0.0003041,120]
[380081734,1755531576362,-406.83,0.0003041,120]
[380081735,1755531576410,-400.0,0.0003041,120]
[380081736,1755531576458,-1001.38,0.0003041,120]
[380081737,1755531576505,-2871.41,0.0003041,120]
[380081738,1755531576551,-400.0,0.0003041,120]
[380081739,1755531576601,-9613.63,0.0003041,120]
[380081740,1755531576646,-400.0,0.0003041,120]
[380081741,1755531576692,-400.0,0.0003041,120]
[380081742,1755531576740,-400.0,0.0003041,120]
[380081743,1755531576786,-400.0,0.0003041,120]
[380081744,1755531576831,-400.0,0.0003041,120]
[380081745,1755531576878,-400.0,0.0003041,120]
[380081746,1755531576930,-400.0,0.0003041,120]
[380081747,1755531576976,-400.0,0.0003041,120]
[380081748,1755531577024,-1839.29,0.0003041,120]
[380081749,1755531577074,-6103.49,0.0003041,120]
[380081750,1755531577557,-1032.7,0.0003041,120]
[380081751,1755531577603,-400.0,0.0003041,120]
[380081752,1755531577648,-400.0,0.0003041,120]
[380081753,1755531577694,-400.0,0.0003041,120]
[380081754,1755531577741,-400.0,0.0003041,120]
[380081755,1755531577787,-400.0,0.0003041,120]
[380081756,1755531577830,-1590.3,0.0003041,120]
[380081757,1755531577877,-400.0,0.0003041,120]
[380081758,1755531577922,-400.0,0.0003041,120]
[380081759,1755531577968,-922.62,0.0003041,120]
[380081760,1755531578014,-400.0,0.0003041,120]
[380081761,1755531578063,-1806.64,0.0003041,120]
[380081762,1755531578111,-400.0,0.0003041,120]
[380081763,1755531578159,-400.0,0.0003041,120]
[380081764,1755531578208,-400.0,0.0003041,120]
[380081765,1755531578256,-2138.74,0.0003041,120]
[380081766,1755531578305,-937.85,0.0003041,120]
[380081767,1755531578354,-400.0,0.0003041,120]
[380081768,1755531578401,-2191.76,0.0003041,120]
[380081769,1755531578451,-866.67,0.0003041,120]
[380081770,1755531578497,-400.0,0.0003041,120]
[380081771,1755531578542,-400.0,0.0003041,120]
[380081772,1755531578590,-400.0,0.0003041,120]
[380081773,1755531578638,-576.98,0.0003041,120]
[380081774,1755531578687,-400.0,0.0003041,120]
[380081775,1755531578734,-400.0,0.0003041,120]
[380081776,1755531578780,-400.0,0.0003041,120]
[380081777,1755531578827,-400.0,0.0003041,120]
[380081778,1755531578873,-400.0,0.0003041,120]
[380081779,1755531578923,-400.0,0.0003041,120]
[380081780,1755531578966,-400.0,0.0003041,120]
[380081781,1755531579012,-400.0,0.0003041,120]
[380081782,1755531579059,-821.24,0.0003041,120]
[380081783,1755531579104,-400.0,0.0003041,120]
[380081784,1755531579153,-400.0,0.0003041,120]
[380081785,1755531579202,-400.0,0.0003041,120]
[380081786,1755531579251,-945.91,0.0003041,120]
[380081787,1755531579299,-400.0,0.0003041,120]
[380081788,1755531579346,-400.0,0.0003041,120]
[380081789,1755531579395,-400.0,0.0003041,120]
[380081790,1755531579450,-2059.16,0.0003041,120]
[380081791,1755531579503,-400.0,0.0003041,120]
[380081792,1755531579556,-400.0,0.0003041,120]
[380081793,1755531579607,-2339.99,0.0003041,120]
[380081794,1755531579653,-400.0,0.0003041,120]
[380081795,1755531579700,-400.0,0.0003041,120]
[380081796,1755531579746,-1388.0,0.0003041,120]
[380081797,1755531579792,-850.0,0.0003041,120]
[380081798,1755531579838,-725.74,0.0003041,120]
[380081799,1755531579887,-400.0,0.0003041,120]
[380081800,1755531579932,-410.8,0.0003041,120]
[380081801,1755531579978,-462.2,0.0003041,120]
[380081802,1755531580023,-400.0,0.0003041,120]
[380081803,1755531580067,-1083.62,0.0003041,120]
[380081804,1755531580108,-1915.22,0.0003041,120]
[380081805,1755531580151,-400.0,0.0003041,120]
[380081806,1755531580196,-400.0,0.0003041,120]
[380081807,1755531580239,-534.74,0.0003041,120]
[380081808,1755531580286,-1533.59,0.0003041,120]
[380081809,1755531580330,-1164.85,0.0003041,120]
[380081810,1755531580376,-400.0,0.0003041,120]
[380081811,1755531580422,-400.0,0.0003041,120]
[380081812,1755531580466,-400.0,0.0003041,120]
[380081813,1755531580514,-400.0,0.0003041,120]
[380081814,1755531580560,-3338.99,0.0003041,120]
[380081815,1755531580606,-719.43,0.0003041,120]
[380081816,1755531580651,-400.0,0.0003041,120]
[380081817,1755531580698,-3124.15,0.0003041,120]
[380081818,1755531580748,-400.0,0.0003041,120]
[380081819,1755531580794,-400.0,0.0003041,120]
[380081820,1755531580839,-400.0,0.0003041,120]
[380081821,1755531580882,-550.81,0.0003041,120]
[380081822,1755531580925,-400.0,0.0003041,120]
[380081823,1755531580968,-570.12,0.0003041,120]
[380081824,1755531581011,-400.0,0.0003041,120]
[380081825,1755531581073,-400.0,0.0003041,120]
[380081826,1755531581136,-429.58,0.0003041,120]
[380081827,1755531581219,-400.0,0.0003041,120]
[380081828,1755531581263,-400.0,0.0003041,120]
[380081829,1755531581307,-400.0,0.0003041,120]
[380081830,1755531581352,-400.0,0.0003041,120]
[380081831,1755531581400,-3704.67,0.0003041,120]
[380081832,1755531581448,-649.5,0.0003041,120]
[380081833,1755531581494,-400.0,0.0003041,120]
[380081834,1755531581539,-400.0,0.0003041,120]
[380081835,1755531581584,-727.89,0.0003041,120]
[380081836,1755531581630,-400.0,0.0003041,120]
[380081837,1755531581674,-501.82,0.0003041,120]
[380081838,1755531581718,-400.0,0.0003041,120]
[380081839,1755531581764,-3599.97,0.0003041,120]
[380081840,1755531581810,-400.0,0.0003041,120]
[380081841,1755531581854,-400.0,0.0003041,120]
[380081842,1755531581900,-400.0,0.0003041,120]
[380081843,1755531581946,-528.01,0.0003041,120]
[380081844,1755531581997,-652.56,0.0003041,120]
[380081845,1755531582044,-400.0,0.0003041,120]
[380081846,1755531582088,-400.0,0.0003041,120]
[380081847,1755531582140,-400.0,0.0003041,120]
[380081848,1755531582191,-400.0,0.0003041,120]
[380081849,1755531582245,-400.0,0.0003041,120]
[380081850,1755531582293,-400.0,0.0003041,120]
[380081851,1755531582339,-4041.87,0.0003041,120]
[380081852,1755531582382,-993.29,0.0003041,120]
[380081853,1755531582427,-2182.65,0.0003041,120]
[380081854,1755531582473,-428.54,0.0003041,120]
[380081855,1755531582517,-400.0,0.0003041,120]
[380081856,1755531582562,-400.0,0.0003041,120]
[380081857,1755531582608,-436.88,0.0003041,120]
[380081858,1755531582652,-402.3668327,0.0003041,120]
[380081859,1755531582697,-536.12,0.0003041,120]
[380081860,1755531582749,-400.0,0.0003041,120]
[380081861,1755531582793,-410.58109412,0.0003041,120]
[380081862,1755531582839,-400.0,0.0003041,120]
[380081863,1755531582885,-400.0,0.0003041,120]
[380081864,1755531582928,-482.9,0.0003041,120]
[380081865,1755531583245,-400.0,0.0003041,120]
[380081866,1755531583300,-400.0,0.0003041,120]
[380081867,1755531583350,-1109.99,0.0003041,120]
[380081868,1755531583400,-400.0,0.0003041,120]
[380081869,1755531583450,-471.85569642,0.0003041,120]
[380081870,1755531583500,-400.0,0.0003041,120]
[380081871,1755531583550,-400.0,0.0003041,120]
[380081872,1755531583601,-654.36,0.0003041,120]
[380081873,1755531583651,-400.0,0.0003041,120]
[380081874,1755531583701,-400.0,0.0003041,120]
[380081875,1755531583748,-400.0,0.0003041,120]
[380081876,1755531583793,-6711.55,0.0003041,120]
[380081877,1755531583838,-400.0,0.0003041,120]
[380081878,1755531583882,-625.81,0.0003041,120]
[380081879,1755531583925,-400.0,0.0003041,120]
[380081880,1755531583971,-400.0,0.0003041,120]
[380081881,1755531584019,-400.0,0.0003041,120]
[380081882,1755531584066,-400.0,0.0003041,120]
[380081883,1755531584111,-1234.88,0.0003041,120]
[380081884,1755531584160,-400.0,0.0003041,120]
[380081885,1755531584208,-400.0,0.0003041,120]
[380081886,1755531584257,-400.0,0.0003041,120]
[380081887,1755531584303,-400.0,0.0003041,120]
[380081888,1755531584350,-400.0,0.0003041,120]
[380081889,1755531584395,-400.0,0.0003041,120]
[380081890,1755531584444,-2099.38,0.0003041,120]
[380081891,1755531584491,-400.0,0.0003041,120]
[380081892,1755531584535,-400.0,0.0003041,120]
[380081893,1755531584582,-400.0,0.0003041,120]
[380081894,1755531584628,-400.0,0.0003041,120]
[380081895,1755531584673,-401.16780313,0.0003041,120]
[380081896,1755531584720,-400.0,0.0003041,120]
[380081897,1755531584767,-400.0,0.0003041,120]
[380081898,1755531584811,-400.0,0.0003041,120]
[380081899,1755531584857,-400.0,0.0003041,120]
[380081900,1755531584903,-400.0,0.0003041,120]
[380081901,1755531584949,-400.0,0.0003041,120]
[380081902,1755531584995,-400.0,0.0003041,120]
[380081903,1755531585042,-445.86,0.0003041,120]
[380081904,1755531585089,-400.0,0.0003041,120]
[380081905,1755531585136,-400.0,0.0003041,120]
[380081906,1755531585185,-400.0,0.0003041,120]
[380081907,1755531585231,-467.75,0.0003041,120]
[380081908,1755531585280,-400.0,0.0003041,120]
[380081909,1755531585332,-400.0,0.0003041,120]
[380081910,1755531585386,-560.58,0.0003041,120]
[380081911,1755531585441,-400.0,0.0003041,120]
[380081912,1755531585491,-400.0,0.0003041,120]
[380081913,1755531585536,-3983.08,0.0003041,120]
[380081914,1755531585583,-1276.43,0.0003041,120]
[380081915,1755531585630,-400.0,0.0003041,120]
[380081916,1755531585676,-400.0,0.0003041,120]
[380081917,1755531585722,-400.0,0.0003041,120]
[380081918,1755531585771,-1163.85,0.0003041,120]
[380081919,1755531585818,-400.0,0.0003041,120]
[380081920,1755531585865,-414.41255021,0.0003041,120]
[380081921,1755531585912,-1247.42,0.0003041,120]
[380081922,1755531585959,-400.0,0.0003041,120]
[380081923,1755531586003,-400.0,0.0003041,120]
[380081924,1755531586048,-499.9,0.0003041,120]
[380081925,1755531586093,-610.68,0.0003041,120]
[380081926,1755531586139,-3650.18,0.0003041,120]
[380081927,1755531586183,-896.63,0.0003041,120]
[380081928,1755531586228,-400.0,0.0003041,120]
[380081929,1755531586275,-400.0,0.0003041,120]
[380081930,1755531586319,-400.0,0.0003041,120]
[380081931,1755531586366,-400.0,0.0003041,120]
[380081932,1755531586412,-400.0,0.0003041,120]
[380081933,1755531586461,-400.0,0.0003041,120]
[380081934,1755531586505,-2137.2,0.0003041,120]
[380081935,1755531586553,-2366.41,0.0003041,120]
[380081936,1755531586604,-780.84363935,0.00030684,120]
[380081937,1755531586652,-1390.83,0.00030684,120]
[380081938,1755531586736,-3767.17,0.00030684,120]
[380081939,1755531586827,-400.0,0.00030684,120]
[380081940,1755531586874,-400.0,0.00030684,120]
[380081941,1755531586925,-400.0,0.00030684,120]
[380081942,1755531586974,-400.0,0.00030684,120]
[380081943,1755531587021,-1973.91,0.00030684,120]
[380081944,1755531587068,-400.0,0.00030684,120]
[380081945,1755531587114,-3484.28,0.00030684,120]
[380081946,1755531587161,-644.58,0.00030684,120]
[380081947,1755531587210,-518.65,0.00030684,120]
[380081948,1755531587258,-1164.03,0.00030684,120]
[380081949,1755531587302,-1069.8,0.00030684,120]
[380081950,1755531587347,-875.08,0.00030684,120]
[380081951,1755531587391,-400.0,0.00030684,120]
[380081952,1755531587435,-1383.15,0.00030684,120]
[380081953,1755531587478,-400.0,0.00030684,120]
[380081954,1755531587524,-2665.9,0.00030684,120]
[380081955,1755531587570,-400.0,0.00030684,120]
[380081956,1755531587617,-2738.61,0.00030684,120]
[380081957,1755531587660,-400.0,0.00030684,120]
[380081958,1755531587705,-1788.64,0.00030684,120]
[380081959,1755531587747,-400.0,0.00030684,120]
[380081960,1755531587790,-1726.01,0.00030684,120]
[380081961,1755531587840,-2110.2,0.00030684,120]
[380081962,1755531587883,-8324.81,0.00030684,120]
[380081963,1755531587927,-917.28,0.00030684,120]
[380081964,1755531587968,-1004.01,0.00030684,120]
[380081965,1755531588009,-574.67,0.00030684,120]
[380081966,1755531588053,-848.98,0.00030684,120]
[380081967,1755531588095,-400.0,0.00030684,120]
[380081968,1755531588147,-400.0,0.00030684,120]
[380081969,1755531588200,-400.0,0.00030684,120]
[380081970,1755531588255,-2748.24,0.00030684,120]
[380081971,1755531588304,-1852.08,0.00030684,120]
[380081972,1755531588349,-1866.6,0.00030684,120]
[380081973,1755531588393,-400.0,0.00030684,120]
[380081974,1755531588437,-3658.8,0.00030684,120]
[380081975,1755531588478,-400.0,0.00030684,120]
[380081976,1755531588519,-630.28,0.00030684,120]
[380081977,1755531588560,-535.53,0.00030684,120]
[380081978,1755531588601,-400.0,0.00030684,120]
[380081979,1755531588931,-400.0,0.00030684,120]
[380081980,1755531588974,-1190.81,0.00030684,120]
[380081981,1755531589020,-400.0,0.00030684,120]
[380081982,1755531589065,-456.75,0.00030684,120]
[380081983,1755531589109,-1243.76,0.00030684,120]
[380081984,1755531589153,-400.0,0.00030684,120]
[380081985,1755531589200,-2338.11,0.00030684,120]
[380081986,1755531589246,-400.0,0.00030684,120]
[380081987,1755531589297,-1427.47,0.00030684,120]
[380081988,1755531589342,-400.0,0.00030684,120]
[380081989,1755531589390,-3943.47,0.00030684,120]
[380081990,1755531589436,-537.58,0.00030684,120]
[380081991,1755531589481,-1213.58,0.00030684,120]
[380081992,1755531589526,-400.0,0.00030684,120]
[380081993,1755531589570,-400.0,0.00030684,120]
[380081994,1755531589614,-1926.09,0.00030684,120]
[380081995,1755531589658,-225.16932363,0.00030684,120]
[380081996,1755531589706,-400.0,0.00030684,120]
[380081997,1755531589752,-3806.85,0.00030684,120]
[380081998,1755531589795,-400.0,0.00030684,120]
[380081999,1755531589840,-3202.76,0.00030684,120]
[380082000,1755531589884,-771.26,0.00030684,120]
[380082001,1755531589930,-685.53,0.00030684,120]
[380082002,1755531589975,-400.0,0.00030684,120]
[380082003,1755531590019,-810.81,0.00030684,120]
[380082004,1755531590060,-2687.84,0.00030684,120]
[380082005,1755531590102,-3947.63,0.00030684,120]
[380082006,1755531590143,-400.68097213,0.00030684,120]
[380082007,1755531590187,-400.0,0.00030684,120]
[380082008,1755531590232,-400.0,0.00030684,120]
[380082009,1755531590277,-467.48,0.00030684,120]
[380082010,1755531590322,-400.0,0.00030684,120]
[380082011,1755531590368,-400.0,0.00030684,120]
[380082012,1755531590417,-400.0,0.00030684,120]
[380082013,1755531590463,-1453.85,0.00030684,120]
[380082014,1755531590506,-400.0,0.00030684,120]
[380082015,1755531590551,-8786.24,0.00030684,120]
[380082016,1755531590598,-1437.44,0.00030684,120]
[380082017,1755531590641,-2496.89,0.00030684,120]
[380082018,1755531590688,-719.71,0.00030684,120]
[380082019,1755531590733,-610.18,0.00030684,120]
[380082020,1755531590777,-387.66,0.00030684,120]
[380082021,1755531590823,-2311.49,0.00030684,120]
[380082022,1755531590867,-400.0,0.00030684,120]
[380082023,1755531590909,-400.0,0.00030684,120]
[380082024,1755531590952,-400.0,0.00030684,120]
[380082025,1755531590995,-2131.27,0.00030684,120]
[380082026,1755531591038,-3944.16,0.00030684,120]
[380082027,1755531591081,-1507.1,0.00030684,120]
[380082028,1755531591124,-400.0,0.00030684,120]
[380082029,1755531591166,-400.0,0.00030684,120]
[380082030,1755531591211,-1866.07,0.00030684,120]
[380082031,1755531591258,-2135.37,0.00030684,120]
[380082032,1755531591305,-400.0,0.00030684,120]
[380082033,1755531591352,-400.0,0.00030684,120]
[380082034,1755531591401,-400.0,0.00030684,120]
[380082035,1755531591449,-400.0,0.00030684,120]
[380082036,1755531591498,-3553.6,0.00030684,120]
[380082037,1755531591557,-400.0,0.00030684,120]
[380082038,1755531591607,-400.0,0.00030684,120]
[380082039,1755531591653,-633.08,0.00030684,120]
[380082040,1755531591701,-755.93,0.00030684,120]
[380082041,1755531591754,-400.0,0.00030684,120]
[380082042,1755531591806,-2037.42,0.00030684,120]
[380082043,1755531591851,-1326.07,0.00030684,120]
[380082044,1755531591896,-400.0,0.00030684,120]
[380082045,1755531591940,-400.0,0.00030684,120]
[380082046,1755531591989,-2815.14,0.00030684,120]
[380082047,1755531592033,-1448.97,0.00030684,120]
[380082048,1755531592077,-400.0,0.00030684,120]
[380082049,1755531592121,-270.9,0.00030684,120]
[380082050,1755531592165,-318.61,0.00030684,120]
[380082051,1755531592210,-400.0,0.00030684,120]
[380082052,1755531592256,-400.0,0.00030684,120]
[380082053,1755531592323,-400.0,0.00030684,120]
[380082054,1755531592385,-400.0,0.00030684,120]
[380082055,1755531592457,-400.0,0.00030684,120]
[380082056,1755531592503,-270.96,0.00030684,120]
[380082057,1755531592549,-400.0,0.00030684,120]
[380082058,1755531592591,-1845.61,0.00030684,120]
[380082059,1755531592635,-2916.73,0.00030684,120]
[380082060,1755531592679,-400.0,0.00030684,120]
[380082061,1755531592721,-6391.15,0.00030684,120]
[380082062,1755531592764,-694.96,0.00030684,120]
[380082063,1755531592807,-400.0,0.00030684,120]
[380082064,1755531592849,-400.0,0.00030684,120]
[380082065,1755531592892,-400.0,0.00030684,120]
[380082066,1755531592933,-3235.58,0.00030684,120]
[380082067,1755531592973,-400.0,0.00030684,120]
[380082068,1755531593015,-946.55,0.00030684,120]
[380082069,1755531593057,-1189.34,0.00030684,120]
[380082070,1755531593099,-400.0,0.00030684,120]
[380082071,1755531593142,-400.0,0.00030684,120]
[380082072,1755531593186,-926.58,0.00030684,120]